bitfinex/quotes_BTCUSD_20240729
["timestamp","ask_amount","ask_price","bid_price","bid_amount"]
[1722223696573,0.18595951,69644.0,69643.0,0.033756]
[1722223696732,0.18595951,69644.0,69643.0,0.134627]
[1722223696929,0.18530517,69644.0,69643.0,0.37837]
[1722223697151,0.16372891,69644.0,69643.0,0.44467]
[1722223697376,0.16372891,69644.0,69643.0,0.674413]
[1722223699027,0.07744,69644.0,69643.0,0.674413]
[1722223699227,0.16372207,69644.0,69643.0,0.674413]
[1722223699697,0.14214706,69644.0,69643.0,0.79378859]
[1722223700707,0.00084,69644.0,69643.0,0.79378859]
[1722223700912,0.00184,69644.0,69643.0,0.79378859]
[1722223701658,0.00084,69644.0,69643.0,0.79378859]
[1722223702059,0.00084,69644.0,69643.0,1.02353159]
[1722223702288,0.00184,69644.0,69643.0,0.674413]
[1722223702435,0.00184,69644.0,69643.0,0.79378649]
[1722223705418,0.00084,69644.0,69643.0,0.674413]
[1722223705617,0.00084,69644.0,69643.0,0.79378649]
[1722223706203,0.00184,69644.0,69643.0,0.79378649]
[1722223706318,0.00084,69644.0,69643.0,0.79378649]
[1722223706958,0.00184,69644.0,69643.0,0.79378649]
[1722223707342,0.00184,69644.0,69643.0,0.72748649]
[1722223707954,0.00084,69644.0,69643.0,0.95722949]
[1722223708156,0.00084,69644.0,69643.0,1.02352949]
[1722223708547,0.00084,69644.0,69643.0,0.904156]
[1722223708747,0.00084,69644.0,69643.0,1.02352899]
[1722223709083,0.00084,69644.0,69643.0,1.07252899]
[1722223709248,0.00084,69644.0,69643.0,1.02352899]
[1722223709249,0.04397731,69644.0,69643.0,1.02352899]
[1722223709443,0.04397731,69644.0,69643.0,1.00952899]
[1722223709891,0.04397731,69644.0,69643.0,0.99552899]
[1722223710096,0.06554601,69644.0,69643.0,0.77978599]
[1722223710248,0.00184,69644.0,69643.0,0.86308599]
[1722223710448,0.00084,69644.0,69643.0,0.86308599]
[1722223710646,0.08711468,69644.0,69643.0,0.86308599]
[1722223711055,0.00084,69644.0,69643.0,0.86308599]
[1722223711533,0.04397702,69644.0,69643.0,1.09282899]
[1722223711690,0.00084,69644.0,69643.0,0.973456]
[1722223712053,0.00184,69644.0,69643.0,0.86308426]
[1722223712228,0.00084,69644.0,69643.0,0.86308426]
[1722223712386,0.00184,69644.0,69643.0,0.86308423]
[1722223712588,0.04397549,69644.0,69643.0,0.86308423]
[1722223712793,0.04397549,69644.0,69643.0,1.09282723]
[1722223712995,0.04397549,69644.0,69643.0,0.86308423]
[1722223712996,0.00084,69644.0,69643.0,0.86308423]
[1722223713364,0.00084,69644.0,69643.0,1.09282723]
[1722223714034,0.00084,69644.0,69643.0,1.10682723]
[1722223714393,0.00084,69644.0,69643.0,1.14217289]
[1722223714796,0.00084,69644.0,69643.0,1.15617289]
[1722223717311,0.00084,69644.0,69643.0,1.25517289]
[1722223717488,0.00084,69644.0,69643.0,1.15617289]
[1722223717661,0.00084,69644.0,69643.0,1.10682723]
[1722223717862,0.00084,69644.0,69643.0,1.15617289]
[1722223718083,0.00084,69644.0,69643.0,1.15616957]
[1722223718467,0.00084,69644.0,69643.0,1.14216957]
[1722223719012,0.00084,69644.0,69643.0,1.15616957]
[1722223719151,0.00084,69644.0,69643.0,1.23796957]
[1722223719599,0.00084,69644.0,69643.0,1.22396957]
[1722223720449,0.00084,69644.0,69643.0,1.23796957]
[1722223720647,0.00084,69644.0,69643.0,1.22396957]
[1722223721051,0.00084,69644.0,69643.0,1.23796957]
[1722223722045,0.00084,69644.0,69643.0,1.23796663]
[1722223724463,0.00084,69644.0,69643.0,1.11860166]
[1722223724668,0.00084,69644.0,69643.0,1.23796592]
[1722223727527,0.08064,69644.0,69643.0,0.58103426]
[1722223727681,0.08064,69644.0,69643.0,0.148627]
[1722223727867,0.14531321,69644.0,69643.0,0.58104413]
[1722223728068,0.14531599,69644.0,69643.0,0.58104413]
[1722223728266,0.14531599,69644.0,69643.0,0.81078713]
[1722223728951,0.14531599,69644.0,69643.0,0.23643013]
[1722223728952,0.14597033,69644.0,69643.0,0.23643013]
[1722223729158,0.16752859,69644.0,69643.0,0.117056]
[1722223729376,0.08549434,69644.0,69643.0,0.117056]
[1722223729557,0.17172433,69644.0,69643.0,0.117056]
[1722223729774,0.08549434,69644.0,69643.0,0.117056]
[1722223730191,0.17172294,69644.0,69643.0,0.117056]
[1722223730398,0.08549434,69644.0,69643.0,0.117056]
[1722223731604,0.17170995,69644.0,69643.0,0.117056]
[1722223731980,0.35887639,69640.0,69639.0,0.229755]
[1722223732187,0.35887639,69640.0,69639.0,0.313055]
[1722223732402,0.35987639,69640.0,69639.0,0.427933]
[1722223732607,0.35887639,69640.0,69639.0,0.255747]
[1722223732815,0.43757639,69640.0,69639.0,0.255747]
[1722223733015,0.43857639,69640.0,69639.0,0.485503]
[1722223733442,0.43857639,69640.0,69639.0,0.49555745]
[1722223734282,0.43957639,69640.0,69639.0,0.50955745]
[1722223734712,0.43957639,69640.0,69639.0,0.16492345]
[1722223734927,0.48167878,69640.0,69639.0,0.16492345]
[1722223735139,0.48167878,69640.0,69639.0,0.0973]
[1722223735140,0.43957639,69640.0,69639.0,0.0973]
[1722223735344,0.50422998,69640.0,69639.0,0.0973]
[1722223735920,0.50422998,69640.0,69639.0,0.014]
[1722223735921,0.55865239,69640.0,69639.0,0.014]
[1722223736143,0.62329716,69640.0,69639.0,0.014]
[1722223736271,0.44377639,69640.0,69639.0,0.0973]
[1722223736710,0.50842108,69640.0,69639.0,0.0973]
[1722223736912,0.44377639,69640.0,69639.0,0.0973]
[1722223737224,0.5084101,69640.0,69639.0,0.0973]
[1722223737463,0.44377639,69640.0,69639.0,0.0973]
[1722223737833,0.5094101,69640.0,69639.0,0.1033]
[1722223738535,0.44477639,69640.0,69639.0,0.1033]
[1722223740550,0.44477639,69640.0,69639.0,0.104224]
[1722223740987,0.55965239,69640.0,69639.0,0.104224]
[1722223741685,0.55865239,69640.0,69639.0,0.098224]
[1722223742171,0.64377639,69640.0,69639.0,0.098224]
[1722223742643,0.63957639,69640.0,69639.0,0.098224]
[1722223743154,0.64057639,69640.0,69639.0,0.112224]
[1722223743390,0.75545239,69640.0,69639.0,0.112224]
[1722223743894,1.32681394,69640.0,69639.0,0.028924]
[1722223744151,1.21815839,69640.0,69639.0,0.014924]
[1722223744380,1.32575422,69640.0,69639.0,0.014924]
[1722223745532,1.32675422,69640.0,69639.0,0.028924]
[1722223745808,1.32673244,69640.0,69639.0,0.028924]
[1722223746266,1.37673244,69640.0,69639.0,0.028924]
[1722223746479,1.21915839,69640.0,69639.0,0.028924]
[1722223748778,1.44891139,69640.0,69639.0,0.028924]
[1722223748988,1.52191139,69640.0,69639.0,0.028924]
[1722223749195,1.47191139,69640.0,69639.0,0.028924]
[1722223749392,1.52191139,69640.0,69639.0,0.028924]
[1722223749628,1.47191139,69640.0,69639.0,0.028924]
[1722223749830,1.52191139,69640.0,69639.0,0.028924]
[1722223750273,1.47191139,69640.0,69639.0,0.028924]
[1722223750486,1.52191139,69640.0,69639.0,0.028924]
[1722223750707,1.47191139,69640.0,69639.0,0.028924]
[1722223751109,1.52191139,69640.0,69639.0,0.028924]
[1722223751512,1.47191139,69640.0,69639.0,0.028924]
[1722223751675,1.52191139,69640.0,69639.0,0.028924]
[1722223752063,1.47191139,69640.0,69639.0,0.028924]
[1722223753297,1.52191139,69640.0,69639.0,0.028924]
[1722223753547,1.66501078,69640.0,69639.0,0.028924]
[1722223754472,2.22371512,69640.0,69639.0,0.028924]
[1722223754655,2.09476378,69640.0,69639.0,0.028924]
[1722223755448,2.09476378,69640.0,69639.0,0.014924]
[1722223755449,2.09376378,69640.0,69639.0,0.014924]
[1722223755654,2.09476378,69640.0,69639.0,0.027924]
[1722223756224,2.09376378,69640.0,69639.0,0.014924]
[1722223756658,2.09376378,69640.0,69639.0,0.015924]
[1722223756659,2.09976378,69640.0,69639.0,0.015924]
[1722223757720,1.95666439,69640.0,69639.0,0.015924]
[1722223757924,1.95566439,69640.0,69639.0,0.001924]
[1722223758995,2.08440215,69640.0,69639.0,0.001924]
[1722223759460,2.08540215,69640.0,69639.0,0.015924]
[1722223759667,2.22750154,69640.0,69639.0,0.001924]
[1722223760055,2.23350154,69640.0,69639.0,0.002924]
[1722223760502,2.10476378,69640.0,69639.0,0.002924]
[1722223760886,2.23350154,69640.0,69639.0,0.002924]
[1722223761028,2.10476378,69640.0,69639.0,0.002924]
[1722223762743,2.05376378,69640.0,69639.0,0.002924]
[1722223763474,2.10476378,69640.0,69639.0,0.002924]
[1722223764889,2.57243678,69640.0,69639.0,0.002924]
[1722223765043,2.58746068,69640.0,69639.0,0.002924]
[1722223769203,2.58746068,69640.0,69639.0,0.0026979]
[1722223772821,2.53646068,69640.0,69639.0,0.0026979]
[1722223773065,2.58746068,69640.0,69639.0,0.0026979]
[1722223777491,2.67076068,69640.0,69639.0,0.0026979]
[1722223779525,2.81564264,69640.0,69639.0,0.0026979]
[1722223779906,2.67076068,69640.0,69639.0,0.0026979]
[1722223780322,2.81569546,69640.0,69639.0,0.0026979]
[1722223780519,2.67076068,69640.0,69639.0,0.0026979]
[1722223783176,1.97248829,69640.0,69639.0,0.0026979]
[1722223783358,1.94948829,69640.0,69639.0,0.0668979]
[1722223783536,2.03278829,69640.0,69639.0,0.0668979]
[1722223783738,2.03278829,69640.0,69639.0,0.0026979]
[1722223783947,2.17588768,69640.0,69639.0,0.0026979]
[1722223784547,2.14788768,69640.0,69639.0,0.0026979]
[1722223784754,2.19888768,69640.0,69639.0,0.0026979]
[1722223785639,2.34391716,69640.0,69639.0,0.0026979]
[1722223785850,2.43449716,69640.0,69639.0,0.0026979]
[1722223786050,2.67072068,69640.0,69639.0,0.0026979]
[1722223786605,0.49633734,69629.0,69628.0,0.00083998]
[1722223786833,0.49633734,69629.0,69622.0,0.00083998]
[1722223786834,0.49636734,69623.0,69622.0,0.00083998]
[1722223787033,1.05598534,69623.0,69622.0,0.00083998]
[1722223787237,1.07898534,69623.0,69622.0,0.00083998]
[1722223787447,0.95599634,69622.0,69621.0,0.0609]
[1722223787647,1.07899634,69622.0,69621.0,0.0609]
[1722223788448,1.20795027,69622.0,69621.0,0.0609]
[1722223788892,1.28210429,69622.0,69621.0,0.0739]
[1722223789143,1.28310429,69622.0,69621.0,0.0739]
[1722223789358,1.07999634,69622.0,69621.0,0.0739]
[1722223789581,1.2100261,69622.0,69621.0,0.0879]
[1722223790293,1.21002209,69622.0,69621.0,0.0879]
[1722223790524,1.08099634,69622.0,69621.0,0.0879]
[1722223790747,1.17004004,69622.0,69621.0,0.0879]
[1722223791186,0.57622434,69617.0,69614.0,0.0791]
[1722223791403,0.59922434,69617.0,69614.0,0.0791]
[1722223792528,0.60022434,69617.0,69616.0,0.012924]
[1722223793160,0.83005234,69617.0,69616.0,0.012924]
[1722223793701,0.60022434,69617.0,69616.0,0.012924]
[1722223794112,0.60022434,69617.0,69616.0,0.077724]
[1722223795502,0.65022434,69617.0,69616.0,0.077724]
[1722223795720,0.60122434,69617.0,69616.0,0.078724]
[1722223796153,0.65122434,69617.0,69616.0,0.078724]
[1722223796482,0.60122434,69617.0,69616.0,0.078724]
[1722223796680,0.65122434,69617.0,69616.0,0.078724]
[1722223798396,0.60122434,69617.0,69616.0,0.078724]
[1722223798964,0.65122434,69617.0,69616.0,0.078724]
[1722223799339,0.73036025,69617.0,69616.0,0.078724]
[1722223799549,0.78045621,69617.0,69616.0,0.078724]
[1722223799757,0.73045621,69617.0,69616.0,0.078724]
[1722223799960,0.60122434,69617.0,69616.0,0.078724]
[1722223800945,0.65122434,69617.0,69616.0,0.078724]
[1722223801268,0.79660308,69617.0,69616.0,0.078724]
[1722223801434,0.74660308,69617.0,69616.0,0.078724]
[1722223801635,0.60122434,69617.0,69616.0,0.078724]
[1722223801836,0.74661483,69617.0,69616.0,0.078724]
[1722223802122,0.60122434,69617.0,69616.0,0.078724]
[1722223802298,0.74562431,69617.0,69616.0,0.078724]
[1722223802498,0.74662431,69617.0,69616.0,0.078724]
[1722223804749,0.60122434,69617.0,69616.0,0.078724]
[1722223804990,0.74659412,69617.0,69616.0,0.078724]
[1722223805347,0.97642212,69617.0,69616.0,0.078724]
[1722223805556,0.70022434,69617.0,69616.0,0.078724]
[1722223805763,0.93005234,69617.0,69616.0,0.078724]
[1722223805965,0.00065434,69600.0,69599.0,0.37917072]
[1722223806162,0.00165434,69600.0,69599.0,0.140903]
[1722223806374,0.04306009,69601.0,69591.0,0.11639709]
[1722223806375,0.00165434,69592.0,69591.0,0.11639709]
[1722223806604,0.00165434,69592.0,69591.0,0.42961109]
[1722223806806,0.04471133,69592.0,69591.0,0.25730709]
[1722223807015,0.00165434,69592.0,69591.0,0.05905009]
[1722223807216,0.34652034,69592.0,69591.0,0.14235009]
[1722223807468,0.34652034,69592.0,69591.0,0.05905009]
[1722223807674,0.34652034,69592.0,69591.0,0.00144009]
[1722223807675,0.11660934,69592.0,69591.0,0.00144009]
[1722223807918,0.11660934,69592.0,69591.0,0.08474009]
[1722223808446,0.20265508,69592.0,69591.0,0.08474009]
[1722223808648,0.00165434,69592.0,69591.0,0.08474009]
[1722223808963,0.00265434,69592.0,69591.0,0.34379709]
[1722223809388,0.06617839,69592.0,69591.0,0.34279709]
[1722223809669,0.06517839,69592.0,69591.0,0.57271109]
[1722223809865,0.10754641,69594.0,69591.0,0.38474009]
[1722223810068,0.10759342,69602.0,69601.0,0.874702]
[1722223810069,0.04302236,69602.0,69601.0,0.874702]
[1722223810277,0.00165434,69606.0,69605.0,0.65317]
[1722223810488,0.00165434,69606.0,69605.0,0.79847]
[1722223810688,0.00165434,69606.0,69605.0,0.79747]
[1722223811323,0.00165434,69606.0,69605.0,0.79547]
[1722223812155,0.00265434,69606.0,69605.0,0.79647]
[1722223812742,0.00265434,69606.0,69605.0,0.71317]
[1722223812943,0.00265434,69606.0,69605.0,0.79647]
[1722223813125,0.00265434,69606.0,69605.0,0.566602]
[1722223813319,0.00265434,69606.0,69605.0,0.483302]
[1722223813523,0.00236125,69606.0,69605.0,0.566602]
[1722223814971,0.00236125,69606.0,69605.0,0.79647]
[1722223815884,0.00136125,69606.0,69605.0,0.79647]
[1722223816309,0.00136125,69606.0,69605.0,0.566602]
[1722223816836,0.00136125,69606.0,69605.0,0.79647]
[1722223816837,0.002,69606.0,69605.0,0.79647]
[1722223817039,0.002,69606.0,69605.0,0.91590574]
[1722223817368,0.002,69606.0,69605.0,1.14577337]
[1722223817921,0.002,69606.0,69605.0,0.91590537]
[1722223818796,0.002,69606.0,69605.0,0.83260537]
[1722223818952,0.002,69606.0,69605.0,0.91590537]
[1722223820000,0.002,69606.0,69605.0,0.92546605]
[1722223820239,0.002,69606.0,69605.0,0.80603068]
[1722223820441,0.002,69606.0,69605.0,0.92546668]
[1722223821025,0.002,69606.0,69605.0,1.15533468]
[1722223822660,0.04302419,69617.0,69616.0,0.349]
[1722223822876,0.06459751,69629.0,69628.0,0.408088]
[1722223823081,0.00084,69636.0,69635.0,0.227284]
[1722223823255,0.00084,69636.0,69635.0,0.770122]
[1722223823458,0.00084,69636.0,69635.0,1.11692203]
[1722223824073,0.00084,69636.0,69635.0,1.36706078]
[1722223824246,0.00084,69636.0,69635.0,1.85468839]
[1722223824445,0.00084,69636.0,69635.0,1.85268839]
[1722223824648,0.00084,69636.0,69635.0,1.7333129]
[1722223824847,0.00184,69636.0,69635.0,1.86568562]
[1722223825050,0.00084,69636.0,69635.0,1.24147787]
[1722223825252,0.00084,69636.0,69635.0,0.75530512]
[1722223825469,0.00084,69636.0,69635.0,0.731822]
[1722223825470,0.00220125,69636.0,69635.0,0.731822]
[1722223825670,0.00720125,69636.0,69635.0,0.602053]
[1722223826490,0.00320125,69636.0,69635.0,0.602053]
[1722223826717,0.00720125,69636.0,69635.0,0.602053]
[1722223827066,0.00320125,69636.0,69635.0,0.602053]
[1722223827293,0.00220125,69636.0,69635.0,0.602053]
[1722223827854,0.00220125,69636.0,69635.0,0.831822]
[1722223828076,0.00284,69636.0,69635.0,0.837822]
[1722223828277,0.00284,69636.0,69635.0,1.067591]
[1722223828739,0.00284,69636.0,69635.0,1.07700848]
[1722223830400,0.00284,69636.0,69635.0,1.37414723]
[1722223830622,0.00284,69636.0,69635.0,1.41117826]
[1722223831088,0.50314734,69640.0,69639.0,1.19978475]
[1722223831327,0.00084,69653.0,69652.0,0.78350775]
[1722223831553,0.00084,69653.0,69652.0,1.5277479]
[1722223831779,0.00084,69653.0,69652.0,1.4297479]
[1722223833808,0.00084,69653.0,69652.0,1.4427479]
[1722223834265,0.00084,69653.0,69652.0,1.4287479]
[1722223834515,0.00084,69653.0,69652.0,1.4567479]
[1722223834516,0.00184,69653.0,69652.0,1.4567479]
[1722223834962,0.00084,69653.0,69652.0,1.4427479]
[1722223835673,0.00184,69653.0,69652.0,1.4012479]
[1722223835902,0.00184,69653.0,69652.0,1.3052479]
[1722223836127,0.00184,69653.0,69652.0,1.25560915]
[1722223836598,0.00584,69653.0,69652.0,0.58788315]
[1722223836836,0.00520125,69653.0,69652.0,0.28003162]
[1722223837064,0.00520125,69653.0,69652.0,0.50974462]
[1722223837321,0.00620125,69653.0,69652.0,0.52374462]
[1722223837553,0.00620125,69653.0,69652.0,0.50974462]
[1722223837801,0.00620125,69653.0,69652.0,0.014]
[1722223838016,0.00436125,69647.0,69646.0,0.0648]
[1722223838242,0.00436125,69647.0,69646.0,0.409399]
[1722223838468,0.00036125,69647.0,69646.0,0.179666]
[1722223838692,0.00436125,69647.0,69646.0,0.179666]
[1722223839363,0.00436125,69647.0,69639.0,0.305155]
[1722223839364,2.94414487,69630.0,69629.0,0.613077]
[1722223839585,2.94414487,69630.0,69629.0,1.24075117]
[1722223840081,2.94414487,69630.0,69629.0,1.81522317]
[1722223840275,2.94414487,69630.0,69629.0,1.82469174]
[1722223840483,2.94414487,69630.0,69629.0,1.86172277]
[1722223841453,2.94414487,69630.0,69629.0,1.27843376]
[1722223841681,2.94414487,69630.0,69629.0,1.54140273]
[1722223841927,2.94414487,69630.0,69629.0,1.43602857]
[1722223842093,2.94414487,69630.0,69629.0,1.56941048]
[1722223842296,2.94414487,69630.0,69629.0,0.67413957]
[1722223842515,2.94414487,69630.0,69629.0,1.03170857]
[1722223842943,2.94414487,69630.0,69629.0,1.26149757]
[1722223843372,2.94414487,69630.0,69629.0,1.24749757]
[1722223843809,2.94414487,69630.0,69629.0,1.26149757]
[1722223844301,2.94414487,69630.0,69629.0,0.96149757]
[1722223844512,2.94414487,69630.0,69629.0,1.26149757]
[1722223844912,2.94414487,69630.0,69629.0,1.24749757]
[1722223845042,2.94414487,69630.0,69629.0,0.94749757]
[1722223845247,2.94414487,69630.0,69629.0,0.73170857]
[1722223845248,2.94514487,69630.0,69629.0,0.73170857]
[1722223845893,2.94414487,69630.0,69629.0,0.71770857]
[1722223846303,2.94514487,69630.0,69629.0,0.73170857]
[1722223846892,2.94514487,69630.0,69629.0,0.48791957]
[1722223847134,2.94514487,69630.0,69629.0,0.50191957]
[1722223847357,2.94514487,69630.0,69629.0,0.48791957]
[1722223847579,2.94514487,69630.0,69629.0,0.42571957]
[1722223847806,2.94514487,69630.0,69629.0,0.20993157]
[1722223847807,2.99514487,69630.0,69629.0,0.20993157]
[1722223848014,3.09514487,69630.0,69629.0,0.09503757]
[1722223848277,3.09514487,69630.0,69629.0,1.08602057]
[1722223848278,2.94514487,69630.0,69629.0,1.08602057]
[1722223848463,2.94514487,69630.0,69629.0,2.21438391]
[1722223848464,2.13554487,69630.0,69629.0,2.21438391]
[1722223848666,2.13554487,69630.0,69629.0,2.13201799]
[1722223848900,2.13554487,69630.0,69629.0,2.58117806]
[1722223849101,2.13554487,69630.0,69629.0,2.61866118]
[1722223849480,2.13554487,69630.0,69629.0,2.49929011]
[1722223849680,2.13554487,69630.0,69629.0,2.61865536]
[1722223853796,2.12609453,69630.0,69629.0,2.61865536]
[1722223854002,2.1174519,69630.0,69629.0,2.58117224]
[1722223854432,2.1174519,69630.0,69629.0,2.57170367]
[1722223854631,2.1174519,69630.0,69629.0,2.53467264]
[1722223855027,2.1174519,69630.0,69629.0,2.52067264]
[1722223855225,2.1174519,69630.0,69629.0,2.55770367]
[1722223855976,2.1174519,69630.0,69629.0,2.57170367]
[1722223856818,2.1164519,69630.0,69629.0,2.55770367]
[1722223857229,2.1164519,69630.0,69629.0,2.06213467]
[1722223857425,2.1164519,69630.0,69629.0,1.65070425]
[1722223857630,2.1164519,69630.0,69629.0,1.47847993]
[1722223857826,2.1164519,69630.0,69629.0,1.77847993]
[1722223858060,2.1164519,69630.0,69629.0,1.35911]
[1722223858255,2.1164519,69630.0,69629.0,1.79248176]
[1722223859305,2.1164519,69630.0,69629.0,1.80188439]
[1722223859758,2.1164519,69630.0,69629.0,1.34838439]
[1722223859964,2.1164519,69630.0,69629.0,1.64838439]
[1722223860380,2.1164519,69630.0,69629.0,1.58991263]
[1722223860585,1.93553727,69630.0,69629.0,1.70929363]
[1722223860794,1.86149727,69630.0,69629.0,2.00589302]
[1722223860997,1.73321177,69630.0,69629.0,2.02889302]
[1722223861199,1.73321177,69630.0,69629.0,2.25868202]
[1722223862316,1.73321177,69630.0,69629.0,2.29571305]
[1722223862520,1.65180177,69630.0,69629.0,2.29571305]
[1722223862915,1.65180177,69630.0,69629.0,2.29569812]
[1722223863188,1.59800177,69630.0,69629.0,2.30679812]
[1722223863391,1.59800177,69630.0,69629.0,2.36648115]
[1722223863769,1.57570177,69630.0,69629.0,2.51568837]
[1722223864172,1.57570177,69630.0,69629.0,2.55317149]
[1722223864879,1.57570177,69630.0,69629.0,2.40396427]
[1722223865201,1.57570177,69630.0,69629.0,2.73221959]
[1722223865202,1.52970177,69630.0,69629.0,2.73221959]
[1722223865608,1.50801882,69630.0,69629.0,2.73221959]
[1722223866022,1.50801882,69630.0,69629.0,2.37412213]
[1722223866219,1.50801882,69630.0,69629.0,2.73221227]
[1722223866571,1.50801882,69630.0,69629.0,2.3963207]
[1722223866746,1.50801882,69630.0,69629.0,2.65769932]
[1722223866981,1.50801882,69630.0,69629.0,2.65769956]
[1722223868367,1.50801882,69630.0,69629.0,2.55886131]
[1722223868517,1.50801882,69630.0,69629.0,2.2697666]
[1722223869150,1.50801882,69630.0,69629.0,2.64838624]
[1722223869362,1.50801882,69630.0,69629.0,2.32944863]
[1722223869569,1.50801882,69630.0,69629.0,2.0399776]
[1722223870225,1.50801882,69630.0,69629.0,1.50187821]
[1722223870439,1.50801882,69630.0,69629.0,1.80187821]
[1722223871742,1.50801882,69630.0,69629.0,1.80280221]
[1722223872049,1.50885882,69630.0,69629.0,1.80280221]
[1722223872302,1.50885882,69630.0,69629.0,1.80280805]
[1722223872852,1.47026308,69630.0,69629.0,1.80280805]
[1722223875448,1.47026308,69630.0,69629.0,1.80280643]
[1722223875808,1.47026308,69630.0,69629.0,1.68343663]
[1722223876057,1.47026308,69630.0,69629.0,1.80280643]
[1722223876256,1.47026308,69630.0,69629.0,1.50280643]
[1722223876461,1.47026308,69630.0,69629.0,2.03222287]
[1722223877091,1.47026308,69630.0,69629.0,1.73222287]
[1722223877293,1.47026308,69630.0,69629.0,2.03222287]
[1722223877495,1.47026308,69630.0,69629.0,1.68186114]
[1722223877718,1.47026308,69630.0,69629.0,1.98186114]
[1722223877947,1.47026308,69630.0,69629.0,1.82836113]
[1722223877948,1.54806308,69630.0,69629.0,1.82836113]
[1722223878153,1.54806308,69630.0,69629.0,1.64930643]
[1722223878364,1.54806308,69630.0,69629.0,1.34930643]
[1722223878570,1.54806308,69630.0,69629.0,1.00014763]
[1722223878776,1.54806308,69630.0,69629.0,0.78973969]
[1722223878982,1.59806308,69630.0,69629.0,0.78973969]
[1722223879189,1.59806308,69630.0,69629.0,0.55995069]
[1722223879190,1.65926308,69630.0,69629.0,0.55995069]
[1722223879806,1.65926308,69630.0,69629.0,0.77573969]
[1722223880006,1.65926308,69630.0,69629.0,0.78973969]
[1722223880238,1.65926308,69630.0,69629.0,0.77573969]
[1722223880649,1.60926308,69630.0,69629.0,0.99152869]
[1722223880851,1.60926308,69630.0,69629.0,1.00552869]
[1722223881686,1.60926308,69630.0,69629.0,0.90014763]
[1722223881899,1.60926308,69630.0,69629.0,1.00554402]
[1722223882250,1.60926308,69630.0,69629.0,1.01954402]
[1722223882451,1.60926308,69630.0,69629.0,0.90014763]
[1722223882891,1.60926308,69630.0,69629.0,1.01954401]
[1722223884854,1.60926308,69630.0,69629.0,1.01953736]
[1722223885476,1.60926308,69630.0,69629.0,1.01953735]
[1722223891222,1.60926308,69630.0,69629.0,1.01953675]
[1722223892693,1.65926308,69630.0,69629.0,1.01953675]
[1722223892927,1.60926308,69630.0,69629.0,1.01953675]
[1722223894199,1.65926308,69630.0,69629.0,0.90014763]
[1722223894385,1.65926308,69630.0,69629.0,1.01954261]
[1722223894631,1.65926308,69630.0,69629.0,0.90014763]
[1722223894829,1.60926308,69630.0,69629.0,1.01954067]
[1722223895030,1.65926308,69630.0,69629.0,1.01954067]
[1722223895206,1.60926308,69630.0,69629.0,1.01954067]
[1722223895434,1.65926308,69630.0,69629.0,1.01954067]
[1722223896580,1.60926308,69630.0,69629.0,1.01954014]
[1722223897165,1.60926308,69630.0,69629.0,1.01953994]
[1722223898157,1.65926308,69630.0,69629.0,1.01953994]
[1722223899304,1.75926308,69630.0,69629.0,0.21527894]
[1722223899496,1.75926308,69630.0,69629.0,0.028924]
[1722223899699,1.75926308,69630.0,69629.0,0.143818]
[1722223900196,1.75926308,69630.0,69629.0,0.028924]
[1722223900440,1.75926308,69630.0,69629.0,0.373607]
[1722223900644,1.65926308,69630.0,69629.0,0.603396]
[1722223900858,1.65926308,69630.0,69629.0,0.373607]
[1722223902174,1.75926308,69630.0,69629.0,0.373607]
[1722223902842,1.65926308,69630.0,69629.0,0.373607]
[1722223904707,1.60926308,69630.0,69629.0,0.603396]
[1722223904920,1.60926308,69630.0,69629.0,0.72279319]
[1722223905471,1.54806308,69630.0,69629.0,0.72279319]
[1722223905697,1.54806308,69630.0,69629.0,0.95258219]
[1722223906104,1.54806308,69630.0,69629.0,0.95257735]
[1722223906837,1.54806308,69630.0,69629.0,0.95257736]
[1722223909629,1.47026308,69630.0,69629.0,0.95257736]
[1722223910072,1.47026308,69630.0,69629.0,0.95257526]
[1722223910073,1.61736308,69630.0,69629.0,0.95257526]
[1722223912951,1.61736308,69630.0,69629.0,0.833185]
[1722223913152,1.61736308,69630.0,69629.0,0.95257655]
[1722223913568,1.66736308,69630.0,69629.0,0.72278754]
[1722223913981,1.76736308,69630.0,69629.0,0.72278754]
[1722223915572,1.76736308,69630.0,69629.0,0.72279493]
[1722223916026,1.76736308,69630.0,69629.0,0.49300777]
[1722223916284,1.76736308,69630.0,69629.0,0.603396]
[1722223916493,1.76736308,69630.0,69629.0,0.72279825]
[1722223917305,1.76736308,69630.0,69629.0,0.49300925]
[1722223917477,1.76736308,69630.0,69629.0,0.373607]
[1722223918059,1.76736308,69630.0,69629.0,0.603396]
[1722223919407,1.76736308,69630.0,69629.0,0.373607]
[1722223919815,1.76736308,69630.0,69629.0,0.603396]
[1722223919955,1.66736308,69630.0,69629.0,0.603396]
[1722223920835,1.66736308,69630.0,69629.0,0.72279898]
[1722223921469,1.66736308,69630.0,69629.0,0.603396]
[1722223921698,1.66736308,69630.0,69629.0,0.72279599]
[1722223923324,1.76736308,69630.0,69629.0,0.72279599]
[1722223923546,1.81038695,69630.0,69629.0,0.72279599]
[1722223924480,1.71038695,69630.0,69629.0,0.72279599]
[1722223924700,1.66736308,69630.0,69629.0,0.603396]
[1722223924908,1.71039697,69630.0,69629.0,0.72279597]
[1722223925107,1.81039697,69630.0,69629.0,0.72279597]
[1722223925726,1.81039697,69630.0,69629.0,0.49300697]
[1722223925930,1.81039697,69630.0,69629.0,0.028924]
[1722223925931,1.76736308,69630.0,69629.0,0.028924]
[1722223926455,1.85076308,69630.0,69629.0,0.028924]
[1722223926998,1.85076308,69630.0,69629.0,0.000924]
[1722223927282,1.85076308,69630.0,69629.0,0.014924]
[1722223927504,2.19544208,69630.0,69629.0,0.028924]
[1722223929385,2.11204208,69630.0,69629.0,0.028924]
[1722223931277,2.34182808,69630.0,69629.0,0.028924]
[1722223931492,2.11204208,69630.0,69629.0,0.028924]
[1722223931701,2.34182808,69630.0,69629.0,0.028924]
[1722223931908,2.11204208,69630.0,69629.0,0.028924]
[1722223932320,2.34182808,69630.0,69629.0,0.028924]
[1722223932525,2.47091285,69630.0,69629.0,0.028924]
[1722223932944,2.55032808,69630.0,69629.0,0.028924]
[1722223933152,2.57332808,69630.0,69629.0,0.028924]
[1722223933361,0.864462,69618.0,69617.0,0.41814009]
[1722223934751,1.094287,69618.0,69617.0,0.00144009]
[1722223934919,1.19288069,69618.0,69617.0,0.00144009]
[1722223935159,1.117287,69618.0,69617.0,0.00144009]
[1722223935563,1.167287,69618.0,69617.0,0.00144009]
[1722223935769,1.117287,69618.0,69617.0,0.00144009]
[1722223936170,1.497112,69618.0,69617.0,0.00144009]
[1722223936406,1.497112,69618.0,69617.0,0.00544009]
[1722223936407,1.597112,69618.0,69617.0,0.00544009]